Cogmind - Beta 17 @@@ ROGUE MODE // 2026.07.21 @ 02:01:19 Player: Artackni Result: Destroyed by QQ-J4L(R) with Subdweller Shrapnel Launcher Performance ------------- Evolutions (0) 0 Regions Visited (2) 400 Robots Destroyed (39) 195 Value Destroyed (730) 730 Prototype IDs (17) 340 Alien Tech Used (0) 0 Bonus (6000) 6000 TOTAL SCORE: 7665 Bonus ------- Prayed to X0-1V1 5000 Major X0-1V1 Interference 1000 Cogmind --------- Core Integrity 0/150 Matter 245/300 Energy 1100/1100 System Corruption 17% Temperature Cool (0) Movement Treading (165) Location -10/Subcaves Parts ------- > --- POWER (1) -------- (None) > --- PROPULSION (2) --- Armored Treads (fused) Medium Treads (fused) > --- UTILITY (2) ------ Large Storage Unit Self-contained Transmogrifier > --- WEAPON (2) ------- Pulse Rifle (fused) Missile Launcher (fused) > --- INVENTORY (15) --- Ion Engine Subdweller Power Source Light Treads High-capacity Matter Pod (200) Seismic Detector Seismic Detector Propulsion Shielding Makeshift Kinetic Plating Scrap Shield Powered Cannon Battle Rifle Mining Laser Peak State ------------ > --- POWER ------------ Light Nuclear Core > --- PROPULSION ------- Armored Treads Medium Treads > --- UTILITY ---------- Large Storage Unit Self-contained Transmogrifier > --- WEAPON ----------- Pulse Rifle Missile Launcher > --- INVENTORY -------- Ion Engine Subdweller Power Source Light Treads High-capacity Matter Pod Seismic Detector Seismic Detector Propulsion Shielding Makeshift Kinetic Plating Scrap Shield Powered Cannon Battle Rifle Mining Laser [Rating: 29] Favorites ----------- Power Light Ion Engine Engine Light Ion Engine Power Core Light Nuclear Core Propulsion Light Treads Treads Light Treads Utility Large Storage Unit Device Self-contained Transmogrifier Storage Large Storage Unit Weapon Assault Rifle Energy Gun Improved Medium Laser Energy Cannon Subdweller Beam Cannon Ballistic Gun Assault Rifle Launcher Missile Launcher Special Weapon Mining Laser Build | -11 -10 -10 ------- Run | Yrd Mat Sub Slots Evolved . | . . . Power . | . . . Propulsion . | . . . Utility . | . . . Weapon . | . . . Parts Attached 19 | 7 4 8 Power 2 | 1 1 . Engine 2 | 1 1 . Core . | . . . Reactor . | . . . Propulsion 3 | 2 . 1 Treads 3 | 2 . 1 Leg . | . . . Wheel . | . . . Hover . | . . . Flight . | . . . Utility 5 | 2 2 1 Device 3 | 1 1 1 Storage 2 | 1 1 . Processor . | . . . Hackware . | . . . Protection . | . . . Artifact . | . . . Weapon 9 | 2 1 6 Energy Gun 1 | . . 1 Energy Cannon 2 | . . 2 Ballistic Gun 5 | 2 1 2 Ballistic Cannon . | . . . Launcher . | . . . Special Weapon 1 | . . 1 Impact Weapon . | . . . Slashing Weapon . | . . . Piercing Weapon . | . . . Special Melee Weapon . | . . . Unidentified Prototypes 2 | . 1 1 Parts Lost 6 | . 1 5 Power 1 | . . 1 Propulsion 1 | . . 1 Utility . | . . . Weapon 4 | . 1 3 Highest Loss Streak 3 | . 1 3 To Critical Strikes . | . . . Average Backups 10 | 1 8 12 Power 1 | . 1 2 Propulsion 1 | . 1 1 Utility 4 | . 3 6 Weapon 2 | . 2 2 Tool/Special . | . . . Unused Backups 13 | . 1 12 Power 3 | . 1 2 Propulsion 1 | . . 1 Utility 7 | . . 7 Weapon 2 | . . 2 Tool/Special . | . . . Average Slot Usage (%) 97 | . 99 96 Engine 10 | . 14 7 Core 3 | . . 5 Treads 26 | . 28 25 Device 14 | . 14 14 Storage 14 | . 14 14 Energy Gun 5 | . . 9 Energy Cannon 2 | . . 4 Ballistic Gun 16 | . 27 9 Special Weapon 2 | . . 3 Peak Build Rating 29 | 7 20 29 Average Rating 16 | 5 7 22 On Entrance 9 | . 7 20 Avg Prop Armor Cover (%) . | . . . Naked Turns . | . . . Heaviest Build 36 | 12 30 36 Greatest Support 48 | 40 40 48 Greatest Overweight (x) 1 | . . 1 Average Overweight (x) . | . . . Largest Inventory Capacity 15 | 8 15 15 Average Capacity 13 | 7 12 15 Most Carried 15 | 3 12 15 Average Carried 11 | 1 8 14 Final Capacity 15 | 8 15 15 Final Carried 14 | 3 12 14 Transmogrified Parts 13 | . . 13 Integrity Recovered 265 | . . 265 Class Distribution -------------------- 100% | Mutant Dominant Class ---------------- Mutant | -10/Materials Mutant | -10/Subcaves Resources | -11 -10 -10 ----------- Run | Yrd Mat Sub Matter Collected 1016 | 286 505 225 Remotely . | . . . Salvage Created 1085 | 114 522 449 Parts 78 | 11 34 33 Haulers Intercepted 2 | . 2 . Recyclers Shooed 1 | . 1 . Parts Field Recycled . | . . . Retrieved Matter . | . . . Parts Self-Destructed 21 | . . 21 Prevented . | . . . Parts Restored . | . . . Kills | -11 -10 -10 ------- Run | Yrd Mat Sub Combat Hostiles Destroyed 26 | . 8 18 Guns 12 | . 8 4 Cannons 9 | . . 9 AOE 5 | . . 5 Classes Destroyed 10 | 2 6 2 Worker 2 | . 2 . Builder 3 | . 3 . Tunneler 3 | 3 . . Hauler 2 | . 2 . Recycler 1 | 1 . . Operator 2 | . 2 . Swarmer 12 | . 1 11 Grunt 8 | . 7 1 Sentry 1 | . . 1 Subdweller 5 | . . 5 Best Kill Streak 5 | 3 3 5 Combat Bots Only 5 | . 2 5 Max Kills in Single Turn 4 | 1 1 4 Gunslinging . | . . . Exploded 4 | . . 4 Melee . | . . . Uniques/NPCs Destroyed . | . . . Combat | -11 -10 -10 -------- Run | Yrd Mat Sub Hostile Shots Fired 133 | . 46 87 Missed 42 | . 12 30 Hits 91 | . 34 57 Projectile 91 | . 34 57 AOE 2 | . . 2 Critical Strikes 2 | . . 2 Damage Taken 1159 | . 385 774 Core 180 | . 20 160 Absorbed by Shields . | . . . Core Remaining (%) 100 | 100 . . Volleys Fired 123 | 15 54 54 Largest 2 | 2 2 2 Hottest 120 | 40 40 120 Shots Fired 210 | 30 107 73 Gun 171 | 30 107 34 Cannon 23 | . . 23 Launcher 3 | . . 3 Special 13 | . . 13 Kinetic 167 | 30 107 30 Thermal 36 | . . 36 Explosive 3 | . . 3 Electromagnetic 4 | . . 4 Robot Hit Streak 8 | 8 8 7 Robot Miss Streak 6 | 6 5 4 Penetration Max . | . . . Secondary Targets 3 | . 3 . Max Gunslinging Chain 1 | . 1 . Shots Hit Robots 107 | 17 61 29 Core Hits 54 | 6 29 19 Critical Kills 1 | . . 1 Critical Parts Destroyed 1 | 1 . . Critical Strikes 2 | 1 . 1 Destroy 2 | 1 . 1 Melee Attacks . | . . . Impact . | . . . Slashing . | . . . Piercing . | . . . Sneak Attacks . | . . . Combat Hostiles . | . . . Follow-up Attacks . | . . . Damage Inflicted 1841 | 170 664 1007 Guns 1025 | 170 664 191 Cannons 410 | . . 410 Explosions 406 | . . 406 Melee . | . . . Ramming . | . . . Kinetic 1002 | 170 664 168 Thermal 410 | . . 410 Explosive 406 | . . 406 Electromagnetic 23 | . . 23 Impact . | . . . Slashing . | . . . Piercing . | . . . Highest Corruption 17 | . 2 17 Average Corruption 7 | . 2 8 Corruption Purged . | . . . Corruption Blocked . | . . . Effects 43 | . 5 38 Message Errors 8 | . 1 7 Matter Fused 11 | . 2 9 Heat Flow Errors 7 | . . 7 Energy Discharges 6 | . 1 5 Data Loss (minor) 6 | . . 6 Misfires 1 | . . 1 Alerts 1 | . . 1 Weapon Failures 3 | . 1 2 Overload Shots . | . . . Overflow Damage 47 | . . 47 Projectiles 28 | . . 28 Explosions 19 | . . 19 Melee . | . . . Knockbacks . | . . . Impact . | . . . Kinetic . | . . . Secondary . | . . . Self-Inflicted Damage . | . . . Shots . | . . . Rammed . | . . . Targets Rammed . | . . . Kicked . | . . . Crushed . | . . . Highest Temperature 245 | . 19 245 Average Temperature 42 | . 8 57 Received Heat Transfer 378 | . 252 126 Siege Activations . | . . . Martial Activations . | . . . Shielding Activations . | . . . Robots Disrupted . | . . . Combat Hostiles . | . . . Robots Corrupted . | . . . Combat Hostiles . | . . . Parts Fried . | . . . Impact Corruptions . | . . . Robots Melted . | . . . Combat Hostiles . | . . . Parts Melted 2 | . . 2 Heat Transferred 555 | . . 555 Parts Sabotaged . | . . . Parts Stolen . | . . . Parts Stripped . | . . . Power Chain Reactions . | . . . Alert | -11 -10 -10 ------- Run | Yrd Mat Sub Maximum Alert Level . | . . . Low Security (%) 100 | 100 100 . Level 1 . | . . . Level 2 . | . . . Level 3 . | . . . Level 4 . | . . . Level 5 . | . . . High Security . | . . . Max Security . | . . . Peak Influence 45 | 10 45 . Initial . | . . . Average 10 | 1 11 . Influence Increases 594 | 20 269 305 Destroy 0b10 Robot/C 420 | . 160 260 Destroy 0b10 Robot/NC 65 | 20 45 . Destroy Leader 44 | . 44 . Successful Hack 5 | . 5 . Lose Combat Pursuer 60 | . 15 45 Influence Decreases 494 | 20 264 210 Entered New Map 3 | . . 3 Time Decay 481 | 20 264 197 Lost Part 10 | . . 10 Squads Dispatched 3 | . 3 . Investigation 1 | . 1 . Extermination . | . . . Reinforcement 2 | . 2 . Assault . | . . . Garrison . | . . . Intercept . | . . . Searches Triggered . | . . . Construction Impeded . | . . . Haulers Reinforced . | . . . Active Scanning Responses . | . . . Cargo Convoy Interrupts . | . . . Stealth | -11 -10 -10 --------- Run | Yrd Mat Sub Distress Signals 1 | . 1 . Communications Jammed . | . . . Distress Signals . | . . . Times Spotted 34 | . 13 21 Peak Tracking Total 5 | . 3 5 Tactical Retreats 2 | . 1 1 Traps | -11 -10 -10 ------- Run | Yrd Mat Sub Traps Triggered 1 | . 1 . Indirectly . | . . . Trap Hack Attempts . | . . . Triggered . | . . . Disarmed . | . . . Reprogrammed . | . . . Reused . | . . . Traps Extracted . | . . . Installed . | . . . Triggered . | . . . Machines | -11 -10 -10 ---------- Run | Yrd Mat Sub Machines Disabled 1 | . . 1 Max in Single Turn 1 | . . 1 Machines Repaired . | . . . Machines Dismantled . | . . . Machines Sabotaged . | . . . Overloaded Fab Kills . | . . . Hacking | -11 -10 -10 --------- Run | Yrd Mat Sub Machines Accessed 6 | . 4 2 Terminals 4 | . 4 . Fabricators . | . . . Repair Stations . | . . . Recycling Units . | . . . Scanalyzers . | . . . Garrison Access . | . . . Total Hacks 12 | . 7 5 Successful 10 | . 5 5 Failed 2 | . 2 . Catastrophic . | . . . Database Lockouts . | . . . Manual 8 | . 8 . Terminals 7 | . 7 . Fabricators . | . . . Repair Stations . | . . . Recycling Units . | . . . Scanalyzers . | . . . Garrison Access . | . . . Terminal Hacks 5 | . . 5 Record 4 | . . 4 Proto ID Catalog 1 | . . 1 Fabricator Hacks . | . . . Repair Station Hacks . | . . . Recycling Unit Hacks . | . . . Scanalyzer . | . . . Garrison Access Hacks . | . . . Unauthorized Hacks 5 | . 5 . Terminals 5 | . 5 . Botnet 1 | . 1 . Skim 4 | . 4 . Fabricators . | . . . Repair Stations . | . . . Recycling Units . | . . . Scanalyzers . | . . . Garrison Access . | . . . Data Cores Recovered . | . . . Used . | . . . Hacking Detections 2 | . 2 . Full Trace Events . | . . . Feedback Events . | . . . Feedback Blocked . | . . . Robot Schematics Acquired . | . . . Robots Built . | . . . Authchips . | . . . Time . | . . . Total Robot Build Rating . | . . . Part Schematics Acquired . | . . . Parts Built . | . . . Authchips . | . . . Time . | . . . Total Part Build Rating . | . . . Part Studies Acquired . | . . . Parts Repaired . | . . . Time . | . . . Parts Recycled . | . . . Recycled Matter . | . . . Retrieved Matter . | . . . Retrieved Components . | . . . Parts Scanalyzed . | . . . Part Schematics Acquired . | . . . Parts Damaged . | . . . Bothacking | -11 -10 -10 ------------ Run | Yrd Mat Sub Used RIF Installer . | . . . Robots Hacked . | . . . Non-combat . | . . . Combat . | . . . Robot Hacks Applied . | . . . Relay Couplers Released . | . . . Fabnet Peak Effective % . | . . . Robots Rewired . | . . . Allies Hacked . | . . . Hacks Repelled . | . . . Allies | -11 -10 -10 -------- Run | Yrd Mat Sub Total Allies . | . . . Largest Group . | . . . Highest-Rated Group . | . . . Highest-Rated Ally . | . . . Total Orders . | . . . Ally Attacks . | . . . Total Damage . | . . . Kills . | . . . Allies Corrupted . | . . . Allies Melted . | . . . X0-1V1 Amusement Gains 23 | . 10 13 Good Acts 6 | . . 6 Bad Acts 5 | . . 5 Intel | -11 -10 -10 ------- Run | Yrd Mat Sub Active Infowar (turns) 1104 | 33 1071 . Seismic 1104 | 33 1071 . Robot Analysis Total . | . . . Derelict Logs Recovered 2 | . . 2 Drone Launches . | . . . Drone Recoveries . | . . . Exploration | -11 -10 -10 ------------- Run | Yrd Mat Sub Turns Passed 2918 | 135 1073 1710 Spaces Moved 1525 | 60 563 902 Core 14 | 14 . . Treads 1511 | 46 563 902 Legs . | . . . Wheels . | . . . Hover . | . . . Flight . | . . . Fastest Speed 50 | 50 160 152 Average Speed 163 | 134 160 166 Slowest Speed 260 | 160 160 260 Overloaded Moves . | . . . Propulsion Burnouts . | . . . Robots Hopped . | . . . Potential Cave-ins . | . . . Cave-ins Triggered . | . . . Exploration Rate (%) 51 | 4 77 73 Regions Visited 2 Branch Regions 1 Pre-discovered Areas 2 | . . 2 Known Exits Taken . | . . . Unknown Exits Taken 2 | 1 1 . Scrap Searched . | . . . Spaces Dug . | . . . Terrain Destroyed 23 | . . 23 Melee . | . . . Projectile 2 | . . 2 AOE 21 | . . 21 Terrain Rammed . | . . . Walls Destroyed . | . . . Machines Disabled . | . . . Actions | -11 -10 -10 --------- Run | Yrd Mat Sub Total 1729 | 84 638 1007 Wait 30 | . 6 24 Move 1523 | 59 562 902 Hop . | . . . Pick Up 21 | 3 9 9 Fast Attach 10 | 7 1 2 Attach 6 | . 1 5 Detach 3 | . 1 2 Swap 6 | . 2 4 Drop 7 | . 2 5 Fire 123 | 15 54 54 Melee . | . . . Ram . | . . . Kick . | . . . Crush . | . . . Escape Stasis . | . . . Rewire . | . . . Trap . | . . . Miscellaneous . | . . . Route ------- -11/Scrapyard -10/Materials (discovered 5 exits: [*Mat x2] / [*Min x2] / *Sub) -10/Subcaves History --------- Turn | Location | Event 14 | -11/Scrapyard | Discovered new exit (range 14) 136 | -11/Scrapyard | Entered Materials 272 | -10/Materials | Discovered new exit (range 16) 308 | -10/Materials | Build established: Mutant 491 | -10/Materials | Discovered new exit (range 16) 569 | -10/Materials | Discovered new exit (range 2) 822 | -10/Materials | Discovered new exit (range 10) 1200 | -10/Materials | Discovered new exit (range 5) 1207 | -10/Materials | Prayed at D.C.S.S. Altar Unit 1209 | -10/Materials | Entered Subcaves 1216 | -10/Subcaves | Learned Materials terminal intel 1249 | -10/Subcaves | Learned Materials terminal intel 1318 | -10/Subcaves | Energy capacity permanently improved by X0-1V1 (+200; -100 max core) 1351 | -10/Subcaves | Visited 4L-MR0's lab 1360 | -10/Subcaves | Found Prototype Device 1360 | -10/Subcaves | Identified Sfc. Transmogrifier 1372 | -10/Subcaves | Found Powered Cannon 1584 | -10/Subcaves | A swath of the cavern ceiling suddenly collapsed 1622 | -10/Subcaves | Ambushed by Subdwellers from Twisted Machinery 1695 | -10/Subcaves | Lost 3 parts (1n2w) 2023 | -10/Subcaves | X0-1V1 activates XOMVISION 2257 | -10/Subcaves | X0-1V1 sent you into danger 2331 | -10/Subcaves | Shifting Twisted Machinery released Sub. Beam Cannon 2342 | -10/Subcaves | Shifting Twisted Machinery released Mak. Kinetic Plating 2363 | -10/Subcaves | System corruption reached 10% 2482 | -10/Subcaves | Visited Clippyterm 2486 | -10/Subcaves | Learned location of Extension (-6) 2486 | -10/Subcaves | Learned Factory emergency access door positions 2523 | -10/Subcaves | X0-1V1 sent hostile S-10 Pest (x5) 2538 | -10/Subcaves | Core integrity fell below 50% 2572 | -10/Subcaves | Learned location of Zion (-7) 2572 | -10/Subcaves | Met a Zionite searching for "candidates" 2894 | -10/Subcaves | X0-1V1 sent hostile S-10 Pest (x5) 2919 | -10/Subcaves | Core integrity fell below 20% 2919 | -10/Subcaves | Destroyed by QQ-J4L(R) with Subdweller Shrapnel Launcher Last Messages --------------- 02807_ NNC4LR3BKMVTQ/KTJR6V SAGT 02815_ Sfc. Transmogrifier converts Sub. Beam Cannon into Missile Launcher. 02822_ /ULL|>PEL0X/VMIOKXZPLEPMTR41/LHUVBEU 02853_ System corrupted: Component data lost. 02874_ System corrupted: Energy discharge (-336). 02894_ System corrupted: Component data lost. 02894_ X0-1V1: "C'mon, do something!" S-10 Pest form resolidifies at new position. 02896_ S-10 Pest destroyed. 02896_ Destroyed Lgt. Ion Engine. 02896_ S-10 Pest destroyed. 02898_ Lgt. Nuclear Core destroyed. 02898_ S-10 Pest destroyed. 02901_ Lgt. Ion Engine fries itself beyond repair. 02912_ Sight range returns to normal. 02913_ INBYFZ|ASQWJKALQ6=T5P 02916_ X0-1V1 is bored! 02917_ Destroyed Sub. Power Source. 02919_ X0-1V1: "It was about time." Map ----- +----------------------------------------------------+ | ######?????#" % " ##?######### | | ### ##????#" %"% ###??????????# | | !## ##### #???##" #????????????? | | ## #### #???#" #????????????? | | ### #???#" #####????????????? | | #?# ### #???## ##????????????????? | | ##?### ## ##??####### ## ##?????????????????? | | #????########## # "" #####??????????????????? | | ##????????#### "" ^##??????????????????????? | | ##????????## #" "#???????????????????????? | | #??????#### "" "#???????????????????????? | | ##????## " ##???????????????????????? | | ###?## * #????????????????????????? | | ### ## ##????????????????????????? | | #### * ## ##?????????????????????????? | | ## ##?# ?###??????????????????????????? | | ### ### ??????????????????????????????? | | ## ## ###????????????????????????????? | | ## ##???????????????????????????? | | ### ## ####???????????????????????? | | #### ### ####????????????????????? | | # ##?# ## ;;#????????????????????? | | ###?# ###### ## ;##?#####?????????????? | | ????######????# ## ;;# ## ##????????? | | ??????????????# ## #????????? | | ??????????????## #; @ #???????? | | ???????????????# #; #???????? | | ???????????????# ## #????????? | | ???????????????# ## #?????????? | | ??????????????? ## #?????????? | | ??????????????# #### RR " ##?????????? | | ??????????????# #??# # " ####??????????? | | ?????????????? ?? ## " #?????????????? | | ?????????????# ? ##? "" #????????????? | | ?????????????# ?#####?? ? " #????????????? | | ?????????????# #???????? ? " #????????????? | | ?????????????######????????# ? " #?????????????? | | ???????????????????????????? ? #####?????????????? | | ???????????????????????????? ??#?????????????????? | | ?????????????????????????????????????????????????? | | ?????????????????????????????????????????????????? | | ?????????????????????????????????????????????????? | | ?????????????????????????????????????????????????? | | ?????????????????????????????????????????????????? | | ?????????????????????????????????????????????????? | | ?????????????????????????????????????????????????? | | ?????????????????????????????????????????????????? | | ?????????????????????????????????????????????????? | | ?????????????????????????????????????????????????? | | ?????????????????????????????????????????????????? | +----------------------------------------------------+ Best States ------------- Heat Dissipation 25 Energy Generation 14 Energy Capacity 1265 Matter Stores 300 Matter Capacity 300 Sight Range 20 Terrain Scan Density 10 Evasion (%) 40 Recoil Reduction 2 Item Schematics ----------------- None Robot Schematics ------------------ None Fabricated ------------ Nothing Repaired ---------- Nothing Studied --------- None Alien Tech Used ----------------- None Achievements -------------- None Challenges ------------ None Game ------ Seed RainbowCryofiberShredder Manual? 0 Play Time 00:13:13 Cumulative 293.9 hours Start 2026.07.21 @ 01:47:44 End 2026.07.21 @ 02:01:19 Sessions 1 Manual Loads 0 Difficulty Rogue Special Mode None Game No. 143 Rogue 143 Adventurer 0 Explorer 0 Win Type - Total 18 Types 14/1/1/1/0/0/0/0/0/1 Lore% 79 Gallery% 74 Achievement% 72 Wizard Run 0 Options --------- Layout 0 ASCII 0 Keyboard 1 Movement Arrows Keybinds 0 Fullscreen 2 Font 18/SmallcapsGlow Map View 76x50 Zoom Use 0% Tactical HUD 1 Map Filters NONE Filters NONE Steam 1 RUN: 8fdfac23-12a9-40be-8a9b-cfbff6911049